Cogmind - Beta 17 @@@ ROGUE MODE // 2026.07.04 @ 02:29:51 Player: THN-L0C Result: Self-destructed Performance ------------- Evolutions (7) 3500 Regions Visited (27) 5400 Robots Destroyed (246) 1230 Value Destroyed (12273) 12273 Prototype IDs (81) 1620 Alien Tech Used (1) 200 Bonus (5394) 5394 TOTAL SCORE: 29617 Bonus ------- High Alert Combat Kills 268 Follower Combat Kills 926 Awakened Behemoth Slayer 1000 Aligned with FarCom 300 Met Data Miner 300 Met Imprinter 300 Destroyed Z-Imprinter 1000 Triggered Deep Caves Wall 500 Exposed GOLEM Chamber 500 Met Zhirov 300 Cogmind --------- Core Integrity 1278/1300 Matter 275/300 Energy 1100/1100 System Corruption 0% Temperature Cool (12) Movement Walking (180) Ox1 Location -3/Research Parts ------- > --- POWER (2) -------- Assembled Flux Generator > --- PROPULSION (4) --- Assembled Alloy Leg Assembled Alloy Leg > --- UTILITY (11) ----- Advanced Cooling System (fused) Assembled Nanovents Large Storage Unit Assembled Biocell Array Assembled Suspension Frame Assembled Combat Suite Experimental Weapon Shielding Assembled Alloy Armor Assembled Alloy Armor > --- WEAPON (4) ------- Assembled Focal Cannon Assembled Focal Cannon Assembled Focal Cannon CR-A16's Behemoth Slayer > --- INVENTORY (15) --- Heavy Antimatter Reactor Particle Reactor Quantum Reactor Experimental Heat Sink Improved Matter Compressor (300) Surveybot 24 Scanner Advanced Particle Charger Makeshift Transmission Jammer Advanced Reaction Control System Centrium Medium Armor Plating Centrium Medium Armor Plating Improved System Restoration Module Transdimensional Reconstructor Advanced Variable Charge Gun Peak State ------------ > --- POWER ------------ Assembled Flux Generator > --- PROPULSION ------- Assembled Alloy Leg Assembled Alloy Leg > --- UTILITY ---------- Assembled Nanovents Assembled Nanovents Assembled Nanovents Large Storage Unit Assembled Biocell Array Assembled Suspension Frame Assembled Combat Suite Assembled Alloy Armor Assembled Alloy Armor GOLEM Unit > --- WEAPON ----------- Assembled Focal Cannon Assembled Focal Cannon Assembled Focal Cannon CR-A16's Behemoth Slayer > --- INVENTORY -------- Particle Reactor Quantum Reactor Experimental Heat Sink Advanced Cooling System Matter Compressor Surveybot 24 Scanner Advanced Particle Charger Makeshift Transmission Jammer Advanced Reaction Control System Centrium Medium Armor Plating Centrium Medium Armor Plating Improved System Restoration Module Transdimensional Reconstructor Advanced Variable Charge Gun Advanced Variable Charge Gun [Rating: 171] Favorites ----------- Power Assembled Flux Generator Engine Deuterium Engine Power Core Micro Nuclear Core Reactor Assembled Flux Generator Propulsion Assembled Alloy Leg Treads Light Treads Leg Assembled Alloy Leg Wheel Armored Huge Wheel Flight Unit Cooled VTOL Module Utility Assembled Nanovents Device Assembled Nanovents Storage Assembled Biocell Array Processor Target Analyzer Hackware Hacking Suite Protection Assembled Alloy Armor Weapon Assembled Focal Cannon Energy Gun Precision Beam Rifle Energy Cannon Assembled Focal Cannon Ballistic Gun Gauss Rifle Ballistic Cannon Bore Cannon Launcher Heavy Missile Launcher Special Weapon RU-N14's Throwing Claymores Impact Weapon Power Maul Slashing Weapon Axe Piercing Weapon CR-A16's Behemoth Slayer Build | -11 -10 -10 -10 -9 -8 -7 -7 -7 -7 -7 -6 -6 -6 -6 -6 -5 -5 -5 -5 -5 -5 -4 -4 -4 -4 -3 -3 ------- Run | Yrd Mat Min Exi Min Mat Fac Low Low Zio Dee Pro Fac Low Low Dat Pro Fac Ext Cet Arc Hub Fac Upp Upp Zhi Pro Res Slots Evolved 14 | . . . . . 4 2 . . . . . 2 . . . . 2 . . . . 2 . . . . 2 Power 1 | . . . . . . . . . . . . 1 . . . . . . . . . . . . . . . Propulsion 2 | . . . . . . . . . . . . . . . . . . . . . . . . . . . 2 Utility 9 | . . . . . 3 1 . . . . . 1 . . . . 2 . . . . 2 . . . . . Weapon 2 | . . . . . 1 1 . . . . . . . . . . . . . . . . . . . . . Parts Attached 187 | 7 2 . . 12 25 15 6 5 13 36 4 10 5 2 . 5 16 5 5 1 2 4 . . 7 . . Power 16 | 1 . . . 2 1 1 1 . 1 4 . . . . . . 2 . . . . . . . 3 . . Engine 7 | 1 . . . 2 1 1 . . 1 1 . . . . . . . . . . . . . . . . . Core 2 | . . . . . . . 1 . . . . . . . . . 1 . . . . . . . . . . Reactor 7 | . . . . . . . . . . 3 . . . . . . 1 . . . . . . . 3 . . Propulsion 18 | 2 . . . 5 1 3 . 1 . 4 . . . . . . 2 . . . . . . . . . . Treads 6 | 2 . . . 4 . . . . . . . . . . . . . . . . . . . . . . . Leg 5 | . . . . . . . . . . 3 . . . . . . 2 . . . . . . . . . . Wheel 6 | . . . . 1 1 2 . 1 . 1 . . . . . . . . . . . . . . . . . Hover . | . . . . . . . . . . . . . . . . . . . . . . . . . . . . Flight 1 | . . . . . . 1 . . . . . . . . . . . . . . . . . . . . . Utility 105 | 2 1 . . 2 9 8 5 . 5 20 2 10 5 1 . 4 11 5 4 1 2 4 . . 4 . . Device 44 | 1 . . . . 6 3 2 . 1 4 2 4 3 . . 2 8 2 2 . . 2 . . 2 . . Storage 14 | 1 1 . . 1 . 1 . . 1 2 . 1 1 1 . 1 1 . . . . 1 . . 1 . . Processor 14 | . . . . . 1 1 1 . 1 1 . 3 1 . . 1 2 . . 1 . 1 . . . . . Hackware 5 | . . . . . 1 1 . . . . . 1 . . . . . . . . 2 . . . . . . Protection 28 | . . . . 1 1 2 2 . 2 13 . 1 . . . . . 3 2 . . . . . 1 . . Artifact . | . . . . . . . . . . . . . . . . . . . . . . . . . . . . Weapon 48 | 2 1 . . 3 14 3 . 4 7 8 2 . . 1 . 1 1 . 1 . . . . . . . . Energy Gun 15 | . . . . . 7 2 . . 1 2 1 . . . . . 1 . 1 . . . . . . . . Energy Cannon 4 | . . . . . 2 1 . . . . 1 . . . . . . . . . . . . . . . . Ballistic Gun 10 | 2 . . . 2 2 . . 2 2 . . . . . . . . . . . . . . . . . . Ballistic Cannon 2 | . . . . 1 . . . . 1 . . . . . . . . . . . . . . . . . . Launcher 3 | . . . . . 2 . . 1 . . . . . . . . . . . . . . . . . . . Special Weapon 7 | . 1 . . . . . . . 3 2 . . . 1 . . . . . . . . . . . . . Impact Weapon 3 | . . . . . . . . 1 . 2 . . . . . . . . . . . . . . . . . Slashing Weapon 2 | . . . . . 1 . . . . 1 . . . . . . . . . . . . . . . . . Piercing Weapon 2 | . . . . . . . . . . 1 . . . . . 1 . . . . . . . . . . . Special Melee Weapon . | . . . . . . . . . . . . . . . . . . . . . . . . . . . . Unidentified Prototypes 28 | . . . . . 8 1 . . 2 9 . . . . . 1 1 . 2 . . . . . 4 . . Parts Lost 78 | . . . . 1 4 . 1 4 . 16 5 3 7 . . 4 22 3 1 . . 5 . . . 2 . Power 4 | . . . . . . . . . . 1 . . 1 . . . 2 . . . . . . . . . . Propulsion 4 | . . . . . 2 . . . . . . . . . . . 2 . . . . . . . . . . Utility 53 | . . . . 1 2 . 1 2 . 13 4 2 4 . . 2 11 3 1 . . 5 . . . 2 . Weapon 17 | . . . . . . . . 2 . 2 1 1 2 . . 2 7 . . . . . . . . . . Highest Loss Streak 16 | . . . . 1 2 . 1 4 . 4 5 2 7 . . 3 16 1 1 . . 2 . . . 2 . To Critical Strikes 1 | . . . . . . . . . . . . . . . . 1 . . . . . . . . . . . Average Backups 14 | . 8 10 11 13 20 16 15 14 14 8 14 15 17 16 14 13 12 12 14 14 14 14 15 15 14 14 14 Power 1 | . . . . 1 1 . . . . 1 2 2 2 2 2 2 1 3 3 3 3 3 2 2 2 3 3 Propulsion . | . 1 2 1 1 1 2 2 2 2 1 . . . . . . . 2 1 . . . . . . . . Utility 7 | . 4 6 6 3 6 6 4 3 3 3 7 10 13 11 9 9 8 6 8 9 9 9 10 11 10 9 9 Weapon 3 | . 1 2 3 6 10 5 6 5 7 2 4 3 2 2 3 2 1 . 1 2 2 2 2 2 1 1 1 Tool/Special . | . . . . . . . . . . . . . . . . . . . . . . . . . . . . Unused Backups 57 | . . . 1 5 14 6 . . 5 5 . 4 . 3 . 1 1 1 2 2 . . 1 . . . 6 Power 5 | . . . . 1 1 . . . . 1 . . . . . . . . 1 . . . 1 . . . . Propulsion 5 | . . . 1 . 3 . . . . . . . . . . . . . . 1 . . . . . . . Utility 27 | . . . . 2 5 1 . . 1 4 . 4 . 3 . . 1 1 . 1 . . . . . . 4 Weapon 17 | . . . . 2 5 5 . . 2 . . . . . . 1 . . 1 . . . . . . . 1 Tool/Special 3 | . . . . . . . . . 2 . . . . . . . . . . . . . . . . . 1 Average Slot Usage (%) 87 | . 100 100 100 99 94 90 91 88 86 84 86 85 85 86 86 85 74 86 88 86 88 88 88 88 88 84 76 Engine 2 | . 14 14 14 14 9 7 3 . 2 2 . . . . . . . . . . . . . . . . . Reactor 3 | . . . . . . . . . . 4 7 6 5 6 6 5 4 5 5 5 5 4 5 5 4 5 4 Treads 2 | . 28 28 28 23 13 . . . . . . . . . . . . . . . . . . . . . . Leg 6 | . . . . . . . . . . 7 . 12 13 13 13 13 10 10 11 11 11 10 10 10 10 10 9 Wheel 2 | . . . . 4 3 7 7 7 7 3 7 . . . . . . . . . . . . . . . . Device 17 | . 14 14 14 . 19 20 21 14 11 1 15 26 21 20 20 19 17 20 21 17 17 30 30 31 27 21 19 Storage 9 | . 14 14 14 14 9 7 7 7 7 4 7 12 12 13 13 13 11 10 11 11 11 10 10 10 10 10 9 Processor 3 | . . . . . 7 7 4 7 7 10 . . 3 . . . 3 3 . 4 1 . . . . . . Protection 9 | . . . . 13 4 7 10 14 16 22 21 . 1 6 6 5 3 8 12 10 6 9 10 10 13 15 14 Energy Gun 2 | . . . . . 14 22 23 3 . . . . . . . . 1 . . . . . . . . . . Energy Cannon 9 | . . . . . . 7 7 . 3 . 1 18 19 20 20 19 11 15 17 15 17 15 15 14 15 15 14 Ballistic Gun 5 | . 24 28 28 19 6 . . 18 18 9 1 . . . . . . . . . . . . . . . . Launcher 1 | . . . . . 1 . . 1 1 2 7 . . . . . . . . . . . . . . . . Impact Weapon 1 | . . . . . . . . 5 . 9 . . . . . . . . . . . . . . . . . Piercing Weapon 2 | . . . . . . . . . . . 3 6 6 1 . 5 4 5 5 5 5 5 5 5 4 5 4 Peak Build Rating 171 | 7 8 8 10 23 46 55 56 56 64 81 88 133 135 135 125 134 147 146 151 147 147 170 170 170 171 165 149 Average Rating 94 | 5 7 8 8 17 37 52 54 52 57 65 81 125 128 127 125 129 111 135 146 142 144 167 169 169 165 151 149 On Entrance 92 | . 7 8 8 10 23 45 51 56 56 56 80 70 132 135 125 125 129 55 146 147 147 144 170 170 170 163 149 Avg Prop Armor Cover (%) 7 | . . . . 9 7 . . . . . . . . . . 5 . . . . . . . . . . . Naked Turns . | . . . . . . . . . . . . . . . . . . . . . . . . . . . . Heaviest Build 141 | 14 29 29 29 103 110 112 78 90 105 105 98 139 138 141 116 121 124 125 129 129 122 124 124 124 127 127 124 Greatest Support 80 | 40 40 40 40 48 54 28 28 28 28 48 28 60 60 60 60 60 60 60 80 80 80 80 80 80 80 80 80 Greatest Overweight (x) 21 | 3 . . . 6 6 3 2 3 3 3 3 4 2 2 1 3 21 2 2 2 1 2 2 1 1 1 1 Average Overweight (x) 1 | . . . . 2 3 2 2 2 2 . 2 2 1 1 1 1 1 1 1 1 1 1 1 1 1 1 1 Largest Inventory Capacity 25 | 8 15 15 15 25 25 25 20 20 20 20 20 20 20 20 15 15 15 15 15 15 15 15 15 15 15 15 15 Average Capacity 17 | 7 14 15 15 20 25 20 20 20 20 10 20 20 20 17 15 15 15 15 15 15 15 15 15 15 15 15 15 Most Carried 25 | 2 10 14 15 21 25 25 20 20 20 20 20 20 20 20 15 15 15 15 15 15 15 15 15 15 15 14 14 Average Carried 16 | . 8 12 14 17 22 20 18 18 19 9 18 19 18 17 15 14 13 13 14 14 14 14 15 14 14 14 14 Final Capacity 25 | 8 15 15 15 25 25 20 20 20 20 20 20 20 20 15 15 15 15 15 15 15 15 15 15 15 15 15 15 Final Carried 25 | 2 10 14 15 21 25 19 20 20 20 20 14 20 20 15 15 15 12 15 15 15 14 15 15 15 14 14 14 Class Distribution -------------------- 43% | Golem 17% | Tank 9% | Mutant 5% | Gunner 5% | Skirmisher 4% | Scavenger-Gladiator 4% | Scavenger-Tank 3% | Commander-Golem Dominant Class ---------------- Mutant | -10/Materials Mutant | -10/Mines Mutant | -10/Exiles Mutant | -9/Mines Gunner | -8/Materials Skirmisher | -7/Factory Gunner | -7/Lower Caves Tank | -7/Lower Caves Tank | -7/Zion Scavenger-Gladiator | -7/Deep Caves Tank | -6/Proximity Caves Golem | -6/Factory Golem | -6/Lower Caves Golem | -6/Lower Caves Golem | -6/Data Miner Golem | -5/Proximity Caves Golem | -5/Factory Golem | -5/Extension Commander-Golem | -5/Cetus Golem | -5/Archives Hacker-Golem | -5/Hub_04(d) Golem | -4/Factory Golem | -4/Upper Caves Golem | -4/Upper Caves Golem | -4/Zhirov Tank | -3/Proximity Caves Tank | -3/Research Resources | -11 -10 -10 -10 -9 -8 -7 -7 -7 -7 -7 -6 -6 -6 -6 -6 -5 -5 -5 -5 -5 -5 -4 -4 -4 -4 -3 -3 ----------- Run | Yrd Mat Min Exi Min Mat Fac Low Low Zio Dee Pro Fac Low Low Dat Pro Fac Ext Cet Arc Hub Fac Upp Upp Zhi Pro Res Matter Collected 6055 | 298 . 44 . 330 764 124 216 180 240 1349 125 621 257 132 . 177 460 137 60 10 30 30 38 24 296 113 . Remotely . | . . . . . . . . . . . . . . . . . . . . . . . . . . . . Salvage Created 12478 | 73 19 44 . 129 971 259 335 180 . 1016 478 1588 1125 431 . 825 1166 1928 69 221 142 850 105 . 296 228 . Parts 532 | 8 . 7 . 12 37 8 12 16 . 11 16 97 40 23 . 33 55 89 2 8 4 38 6 . 2 8 . Haulers Intercepted 6 | . . . . . 5 1 . . . . . . . . . . . . . . . . . . . . . Recyclers Shooed 4 | . . . . . . 1 . . . . . 3 . . . . . . . . . . . . . . . Parts Field Recycled . | . . . . . . . . . . . . . . . . . . . . . . . . . . . . Retrieved Matter . | . . . . . . . . . . . . . . . . . . . . . . . . . . . . Parts Self-Destructed 148 | . . . . . . . 9 11 1 . 8 . 43 23 . 38 . . . . . . 6 . 1 8 . Prevented . | . . . . . . . . . . . . . . . . . . . . . . . . . . . . Parts Restored . | . . . . . . . . . . . . . . . . . . . . . . . . . . . . Kills | -11 -10 -10 -10 -9 -8 -7 -7 -7 -7 -7 -6 -6 -6 -6 -6 -5 -5 -5 -5 -5 -5 -4 -4 -4 -4 -3 -3 ------- Run | Yrd Mat Min Exi Min Mat Fac Low Low Zio Dee Pro Fac Low Low Dat Pro Fac Ext Cet Arc Hub Fac Upp Upp Zhi Pro Res Combat Hostiles Destroyed 255 | . . 3 . 2 15 3 6 13 . 48 20 29 18 7 . 16 18 35 1 2 2 13 1 . . 3 . Melee 8 | . . . . . 1 . . . . 2 . . . . . . 4 . . . . 1 . . . . . Guns 55 | . . 3 . 2 8 1 6 3 . 32 . . . . . . . . . . . . . . . . . Cannons 129 | . . . . . . . . . . 1 3 26 18 7 . 11 11 33 1 2 2 11 . . . 3 . AOE 51 | . . . . . 4 . . 10 . 11 17 2 . . . 4 2 . . . . 1 . . . . . Classes Destroyed 21 | 1 1 1 . 3 5 1 1 1 . 4 1 1 . . . 1 . . . . . . . . . . . Worker 1 | . . . . 1 . . . . . . . . . . . . . . . . . . . . . . . Builder 6 | . . . . 1 . . . . . . . 1 . . . . 3 . . . . 1 . . . . . Tunneler 3 | 3 . . . . . . . . . . . . . . . . . . . . . . . . . . . Hauler 6 | . . . . . 5 1 . . . . . . . . . . . . . . . . . . . . . Recycler 4 | . . . . . 2 1 . . . . . 1 . . . . . . . . . . . . . . . Operator 6 | . . . . . 1 1 . . . . . 1 . . . . . 1 . 2 . . . . . . . Watcher 5 | . 1 . . . 2 . . . . . . 1 . . . . 1 . . . . . . . . . . Swarmer 38 | . . 3 . . 3 . . 12 . . 2 5 . . . 4 . 9 . . . . . . . . . Grunt 77 | . . . . 2 7 . 2 . . . 10 8 13 6 . 5 7 8 . . 1 6 . . . 2 . Brawler 5 | . . . . . 1 . 1 . . . 1 . 1 . . 1 . . . . . . . . . . . Duelist 7 | . . . . . . . 1 . . . 3 1 1 . . . 1 . . . . . . . . . . Protector 1 | . . . . . . . . . . . 1 . . . . . . . . . . . . . . . . Sentry 30 | . . . . . 4 . 1 . . . 1 3 1 1 . 1 2 9 . 2 1 3 . . . 1 . Specialist 2 | . . . . . . . . . . . . . . . . 2 . . . . . . . . . . . Hunter 11 | . . . . . . . . 1 . . 2 . 2 . . 2 . 4 . . . . . . . . . Programmer 29 | . . . . . . 3 1 . . . . 11 . . . . 8 2 . . . 4 . . . . . Behemoth 5 | . . . . . . . . . . . . 1 . . . 1 . 2 . . . . 1 . . . . Cetus Guard 1 | . . . . . . . . . . . . . . . . . . . 1 . . . . . . . . Z-Light 4 | . . . . . . . . . . 4 . . . . . . . . . . . . . . . . . Assembler 2 | . . . . . . . . . . 2 . . . . . . . . . . . . . . . . . Assembled 40 | . . . . . . . . . . 40 . . . . . . . . . . . . . . . . . Golem 4 | . . . . . . . . . . 4 . . . . . . . . . . . . . . . . . Butcher 1 | . . . . . . . . . . . . . . . . . . 1 . . . . . . . . . Best Kill Streak 24 | 2 1 3 . 2 4 1 2 8 . 24 14 4 5 3 . 5 4 4 1 2 1 5 1 . . 3 . Combat Bots Only 23 | . . 3 . 2 4 1 2 8 . 23 14 4 5 3 . 5 3 4 1 1 1 5 1 . . 3 . Max Kills in Single Turn 3 | 1 1 1 . 1 2 1 1 3 . 3 3 2 1 1 . 2 2 2 1 1 1 2 1 . . 1 . Gunslinging . | . . . . . . . . . . . . . . . . . . . . . . . . . . . . Exploded 3 | . . . . . 2 . . 3 . 2 3 1 . . . 2 2 . . . . 1 . . . . . Melee 1 | . . . . . 1 . . . . 1 . . . . . . 1 . . . . 1 . . . . . Uniques/NPCs Destroyed 1 | . . . . . . . . . . 1 . . . . . . . . . . . . . . . . . Z-Imprinter (-7/Deep Caves) Combat | -11 -10 -10 -10 -9 -8 -7 -7 -7 -7 -7 -6 -6 -6 -6 -6 -5 -5 -5 -5 -5 -5 -4 -4 -4 -4 -3 -3 -------- Run | Yrd Mat Min Exi Min Mat Fac Low Low Zio Dee Pro Fac Low Low Dat Pro Fac Ext Cet Arc Hub Fac Upp Upp Zhi Pro Res Hostile Shots Fired 1716 | . 17 13 . 20 100 36 126 31 . 206 56 195 138 40 . 125 261 142 16 4 4 135 12 . . 33 6 Missed 523 | . 2 4 . 7 26 13 46 12 . 62 11 67 26 12 . 32 70 61 6 . 2 45 4 . . 12 3 Hits 1193 | . 15 9 . 13 74 23 80 19 . 144 45 128 112 28 . 93 191 81 10 4 2 90 8 . . 21 3 Melee 12 | . . . . . . . 1 . . 6 . 1 1 . . . 3 . . . . . . . . . . Projectile 1181 | . 15 9 . 13 74 23 79 19 . 138 45 127 111 28 . 93 188 81 10 4 2 90 8 . . 21 3 AOE 1 | . . . . . . . . . . . . 1 . . . . . . . . . . . . . . . Critical Strikes 52 | . . 1 . . 2 . 1 . . 3 3 2 2 1 . 3 20 4 . 2 . 8 . . . . . Actively Blocked 3 | . . . . . . . . . . 2 1 . . . . . . . . . . . . . . . . Part Disruptions 3 | . . . . . . . . . . 1 . . . . . 2 . . . . . . . . . . . Actively Blocked 1 | . . . . . . . . . . 1 . . . . . . . . . . . . . . . . . Damage Taken 22400 | . 125 76 . 188 1205 353 776 270 . 4069 871 2401 2018 406 . 1543 3584 1580 241 151 37 1948 122 . . 375 61 Core 2352 | . 36 9 . . 176 29 61 13 . 507 73 145 252 62 . 235 497 50 44 . . 124 . . . 17 22 Absorbed by Shields 33 | . . . . . . . . . . 33 . . . . . . . . . . . . . . . . . Redirected to Shielding 600 | . . . . . . . . . . 417 89 . . . . . . . . . . . . . . 78 16 Ignored by Resistances 1976 | . . . . . . . . . . 189 . . . 81 . 278 504 323 49 31 7 396 25 . . 81 12 Regen/Repaired (Parts) 837 | . . . . . 66 . . . 771 . . . . . . . . . . . . . . . . . . Core Remaining (%) 56 | 100 . . . 82 68 . . . . . 2 . . . . 18 . . . . 40 . . . . 87 . Volleys Fired 599 | 8 8 5 . 12 64 68 14 15 . 59 36 61 40 10 . 26 43 67 4 8 3 41 . . . 7 . Largest 4 | 2 2 2 . 2 3 3 3 3 . 4 2 3 3 4 . 3 3 3 3 3 3 3 . . . 3 . Hottest 183 | 40 120 40 . 40 183 183 183 122 . 115 108 75 75 95 . 75 75 75 75 75 75 75 . . . 75 . Shots Fired 1296 | 16 9 10 . 24 118 89 33 17 . 189 40 147 90 37 . 64 91 169 12 24 9 86 . . . 22 . Gun 375 | 16 7 10 . 24 90 41 32 10 . 135 3 . . . . . 7 . . . . . . . . . . Cannon 854 | . . . . . 17 48 1 . . 33 20 147 90 30 . 62 84 169 12 24 9 86 . . . 22 . Launcher 48 | . . . . . 11 . . 7 . 18 10 . . . . 2 . . . . . . . . . . . Special 19 | . 2 . . . . . . . . 3 7 . . 7 . . . . . . . . . . . . . Kinetic 277 | 16 7 10 . 24 28 . . 3 . 168 21 . . . . . . . . . . . . . . . . Thermal 952 | . 2 . . . 79 89 33 7 . . . 147 90 37 . 62 84 169 12 24 9 86 . . . 22 . Explosive 58 | . . . . . 11 . . 7 . 21 17 . . . . 2 . . . . . . . . . . . Electromagnetic 6 | . . . . . . . . . . . . . . . . . 6 . . . . . . . . . . Phasic 3 | . . . . . . . . . . . 2 . . . . . 1 . . . . . . . . . . Robot Hit Streak 25 | 4 1 6 . 10 19 11 18 11 . 12 10 14 25 25 . 7 9 22 5 15 11 18 . . . 17 . Robot Miss Streak 7 | 2 2 2 . 3 3 1 1 1 . 7 1 5 1 2 . 3 4 3 1 1 1 1 . . . 1 . Penetration Max . | . . . . . . . . . . . . . . . . . . . . . . . . . . . . Secondary Targets 5 | . . 2 . 1 . . 2 . . . . . . . . . . . . . . . . . . . . Max Gunslinging Chain 1 | . . 1 . 1 . . 1 . . . . . . . . . . . . . . . . . . . . Autonomous 105 | . . . . . . . . . . 103 2 . . . . . . . . . . . . . . . . Shots Hit Robots 792 | 11 3 6 . 18 72 36 28 11 . 107 12 75 77 18 . 36 69 99 9 21 6 54 1 . 5 18 . Core Hits 414 | 5 2 4 . 6 35 9 11 12 . 64 53 33 24 11 . 21 29 45 6 8 4 23 . . 2 7 . Critical Kills 7 | . . . . . . . . 1 . 4 2 . . . . . . . . . . . . . . . . Critical Parts Destroyed 8 | . . . . . . . . . . 8 . . . . . . . . . . . . . . . . . Critical Strikes 36 | . . . . . 7 1 4 1 . 13 3 . 1 1 . . 3 . . 1 . 1 . . . . . Burn 11 | . . . . . 6 1 4 . . . . . . . . . . . . . . . . . . . . Destroy 10 | . . . . . 1 . . 1 . 6 2 . . . . . . . . . . . . . . . . Smash 7 | . . . . . . . . . . 7 . . . . . . . . . . . . . . . . . Sever 2 | . . . . . . . . . . . 1 . . 1 . . . . . . . . . . . . . Impale 6 | . . . . . . . . . . . . . 1 . . . 3 . . 1 . 1 . . . . . Melee Attacks 114 | . . . . . 8 . . . 1 38 3 18 6 1 . 2 22 2 . 3 . 4 1 . 5 . . Impact 37 | . . . . . . . . . 1 36 . . . . . . . . . . . . . . . . . Slashing 8 | . . . . . 8 . . . . . . . . . . . . . . . . . . . . . . Piercing 69 | . . . . . . . . . . 2 3 18 6 1 . 2 22 2 . 3 . 4 1 . 5 . . Sneak Attacks 6 | . . . . . 1 . . . . . . 2 . . . . . . . 3 . . . . . . . Combat Hostiles . | . . . . . . . . . . . . . . . . . . . . . . . . . . . . Follow-up Attacks 1 | . . . . . . . . . . 1 . . . . . . . . . . . . . . . . . Damage Inflicted 37385 | 110 42 60 . 230 1854 805 581 1067 . 4946 3174 4331 3426 811 . 1882 3456 4832 482 1076 258 2730 . . 444 788 . Guns 5682 | 110 42 60 . 191 1063 774 581 120 . 2578 33 . . . . . 130 . . . . . . . . . . Cannons 21685 | . . . . . 23 31 . . . 35 92 3629 3279 797 . 1515 2716 4829 482 880 258 2331 . . . 788 . Explosions 7279 | . . . . . 681 . . 947 . 1500 2911 453 . . . 367 161 . . . . 259 . . . . . Melee 2447 | . . . . . 78 . . . . 787 . 249 147 . . . 440 . . 196 . 106 . . 444 . . Ramming 94 | . . . . 39 9 . . . . . . . . . . . 9 3 . . . 34 . . . . . Kinetic 3335 | 110 42 60 . 191 212 . . 15 . 2613 92 . . . . . . . . . . . . . . . . Thermal 24121 | . . . . . 874 805 581 105 . . . 3790 3279 811 . 1515 2716 4829 482 880 258 2408 . . . 788 . Explosive 7041 | . . . . . 681 . . 947 . 1500 2911 292 . . . 367 161 . . . . 182 . . . . . Electromagnetic 97 | . . . . . . . . . . . . . . . . . 97 . . . . . . . . . . Impact 787 | . . . . . . . . . . 787 . . . . . . . . . . . . . . . . . Slashing 262 | . . . . . 78 . . . . 46 138 . . . . . . . . . . . . . . . . Piercing 1582 | . . . . . . . . . . . . 249 147 . . . 440 . . 196 . 106 . . 444 . . Phasic 66 | . . . . . . . . . . . 33 . . . . . 33 . . . . . . . . . . Highest Corruption 11 | . . . . . . 6 2 2 2 . . 5 6 6 6 6 11 2 . . . 2 2 2 2 2 . Average Corruption 3 | . . . . . . 2 2 2 2 . . 2 4 6 6 6 2 1 . . . 2 2 2 2 2 . Corruption Purged 24 | . . . . . . 5 . . . . . 3 . . . . 14 2 . . . . . . . . . Corruption Blocked . | . . . . . . . . . . . . . . . . . . . . . . . . . . . . Effects 318 | . . . . . . 23 10 11 . . . 32 54 27 2 67 9 36 . . . 9 15 7 6 10 . Message Errors 76 | . . . . . . 8 4 1 . . . 8 10 6 1 18 1 6 . . . 2 6 2 2 1 . Matter Fused 89 | . . . . . . 6 1 . . . . 12 18 5 . 18 6 10 . . . 2 4 1 2 4 . Heat Flow Errors 51 | . . . . . . 4 . 3 . . . 2 9 6 . 11 1 10 . . . 1 3 1 . . . Energy Discharges 32 | . . . . . . 1 1 2 . . . 5 3 3 . 8 . 2 . . . 2 . 1 2 2 . Parts Rejected 1 | . . . . . . . . . . . . 1 . . . . . . . . . . . . . . . Parts Fused 2 | . . . . . . . . . . . . . . . . . . 1 . . . . . . . 1 . Data Loss (minor) 30 | . . . . . . 3 1 2 . . . 2 8 3 1 5 . 2 . . . 1 . 1 . 1 . Data Loss (major) 14 | . . . . . . . 2 1 . . . 1 2 3 . 2 . . . . . 1 2 . . . . Misfires 11 | . . . . . . . 1 . . . . . 3 1 . 1 1 3 . . . . . . . 1 . Alerts 5 | . . . . . . . . 1 . . . 1 . . . 1 . 1 . . . . . 1 . . . Weapon Failures 7 | . . . . . . 1 . 1 . . . . 1 . . 3 . 1 . . . . . . . . . Overload Shots . | . . . . . . . . . . . . . . . . . . . . . . . . . . . . Overflow Damage 1929 | . . . . . 49 . . 78 . 389 43 420 120 . . 89 250 162 6 100 . 51 . . 172 . . Projectiles 988 | . . . . . . . . . . . 23 352 109 . . 60 228 162 6 10 . 38 . . . . . Explosions 267 | . . . . . 49 . . 78 . 78 20 . . . . 29 . . . . . 13 . . . . . Melee 674 | . . . . . . . . . . 311 . 68 11 . . . 22 . . 90 . . . . 172 . . Knockbacks 7 | . . . . . 2 . . . . 5 . . . . . . . . . . . . . . . . . Impact 6 | . . . . . 1 . . . . 5 . . . . . . . . . . . . . . . . . Kinetic 1 | . . . . . 1 . . . . . . . . . . . . . . . . . . . . . . Secondary . | . . . . . . . . . . . . . . . . . . . . . . . . . . . . Self-Inflicted Damage 705 | . . . . . 74 . . . . 86 16 112 . . . 40 66 . . . . 311 . . . . . Shots 15 | . . . . . 3 . . . . 2 1 1 . . . 2 1 . . . . 5 . . . . . Rammed 6 | . . . . 5 1 . . . . . . . . . . . . . . . . . . . . . . Targets Rammed 15 | . . . . 6 2 . . . . . . . . . . . 1 1 . . . 5 . . . . . Kicked 7 | . . . . . . . . . . . . . . . . . 1 1 . . . 5 . . . . . Crushed 2 | . . . . 1 1 . . . . . . . . . . . . . . . . . . . . . . Highest Temperature 429 | . 20 . . 18 398 351 186 190 . 429 335 100 257 220 . 239 207 216 . . . 151 213 208 . . . Average Temperature 93 | . 10 . . 9 95 82 72 66 . 119 87 59 98 94 . 93 89 84 . . . 87 95 128 . . . Received Heat Transfer 5558 | . . . . 108 450 72 219 . . 878 234 471 408 222 . 515 1048 399 . 9 9 390 . . . 105 21 Effects 5 | . . . . . . 1 . . . 2 1 . . . . . 1 . . . . . . . . . . Shutdowns 1 | . . . . . . . . . . 1 . . . . . . . . . . . . . . . . . Energy Bleed 2 | . . . . . . 1 . . . . 1 . . . . . . . . . . . . . . . . Interference 1 | . . . . . . . . . . . . . . . . . 1 . . . . . . . . . . Damage (minor) 1 | . . . . . . . . . . 1 . . . . . . . . . . . . . . . . . Siege Activations . | . . . . . . . . . . . . . . . . . . . . . . . . . . . . Martial Activations . | . . . . . . . . . . . . . . . . . . . . . . . . . . . . Shielding Activations . | . . . . . . . . . . . . . . . . . . . . . . . . . . . . Robots Disrupted . | . . . . . . . . . . . . . . . . . . . . . . . . . . . . Combat Hostiles . | . . . . . . . . . . . . . . . . . . . . . . . . . . . . Robots Corrupted 3 | . . . . . . . . . . 2 . . . . . . 1 . . . . . . . . . . Combat Hostiles 3 | . . . . . . . . . . 2 . . . . . . 1 . . . . . . . . . . Parts Fried 1 | . . . . . . . . . . . . . . . . . 1 . . . . . . . . . . Impact Corruptions 7 | . . . . . . . . . . 7 . . . . . . . . . . . . . . . . . Robots Melted 4 | . . . . . 2 2 . . . . . . . . . . . . . . . . . . . . . Combat Hostiles 4 | . . . . . 2 2 . . . . . . . . . . . . . . . . . . . . . Parts Melted 25 | . . . . . 4 5 5 . . . . 4 2 . . . 3 2 . . . . . . . . . Heat Transferred 17079 | . . . . . 2294 1419 1332 222 . . . 1900 1850 462 . 900 1425 2650 250 450 150 1325 . . . 450 . Parts Sabotaged . | . . . . . . . . . . . . . . . . . . . . . . . . . . . . Parts Stolen . | . . . . . . . . . . . . . . . . . . . . . . . . . . . . Parts Stripped . | . . . . . . . . . . . . . . . . . . . . . . . . . . . . Power Chain Reactions . | . . . . . . . . . . . . . . . . . . . . . . . . . . . . Alert | -11 -10 -10 -10 -9 -8 -7 -7 -7 -7 -7 -6 -6 -6 -6 -6 -5 -5 -5 -5 -5 -5 -4 -4 -4 -4 -3 -3 ------- Run | Yrd Mat Min Exi Min Mat Fac Low Low Zio Dee Pro Fac Low Low Dat Pro Fac Ext Cet Arc Hub Fac Upp Upp Zhi Pro Res Maximum Alert Level 2 | . . . . . . . . . . . . 2 . . . . 1 2 1 . . 2 . . . . . Low Security (%) 73 | 100 100 100 . 100 100 100 . . . . . 49 . . . . 88 30 69 100 100 77 . . . . 100 Level 1 15 | . . . . . . . . . . . . 22 . . . . 11 51 30 . . 1 . . . . . Level 2 11 | . . . . . . . . . . . . 27 . . . . . 18 . . . 21 . . . . . Level 3 . | . . . . . . . . . . . . . . . . . . . . . . . . . . . . Level 4 . | . . . . . . . . . . . . . . . . . . . . . . . . . . . . Level 5 . | . . . . . . . . . . . . . . . . . . . . . . . . . . . . High Security . | . . . . . . . . . . . . . . . . . . . . . . . . . . . . Max Security . | . . . . . . . . . . . . . . . . . . . . . . . . . . . . Peak Influence 640 | 5 8 70 . 30 118 34 . . . . . 640 . . . . 258 527 281 69 55 482 . . . . . Initial 281 | . . . . . . 34 . . . . . 177 . . . . . 15 281 41 . . . . . . . Average 122 | . . 7 . . 40 5 . . . . . 233 . . . . 42 252 176 13 14 124 . . . . . Influence Increases 7198 | 15 20 70 . 60 666 177 160 315 . . 415 1210 410 160 . 427 669 1176 122 148 102 746 30 . 10 90 . Destroy 0b10 Robot/C 4400 | . . 60 . 40 300 60 120 260 . . 380 620 360 140 . 360 360 760 80 80 80 260 20 . . 60 . Destroy 0b10 Robot/NC 180 | 15 5 . . 10 50 15 . . . . 5 20 . . . . 20 10 5 10 . 5 . . 10 . . Destroy Leader 744 | . 2 10 . 10 74 32 10 40 . . 30 172 50 20 . 30 82 92 . . 10 70 10 . . . . Allied During Kill 219 | . . . . . . . . . . . . 13 . . . 22 . 137 31 12 4 . . . . . . Trap Triggered on 0b10 30 | . . . . . 30 . . . . . . . . . . . . . . . . . . . . . . Successful Hack 142 | . 11 . . . 57 26 . . . . . 25 . . . . 9 . . . . 14 . . . . . Select Force Hacks 20 | . . . . . . 20 . . . . . . . . . . . . . . . . . . . . . Disable Machine 420 | . . . . . 45 . . . . . . 180 . . . . 60 30 . 30 . 75 . . . . . Anti-Garrison Action 150 | . . . . . . . . . . . . . . . . . . . . . . 150 . . . . . Destroy Structure 593 | . 2 . . . 50 24 . . . . . 135 . . . . 108 102 6 16 8 142 . . . . . Partial Spotted 30 | . . . . . . . . . . . . 30 . . . . . . . . . . . . . . . Lose Combat Pursuer 270 | . . . . . 60 . 30 15 . . . 15 . . . 15 30 45 . . . 30 . . . 30 . Influence Decreases 7198 | 15 20 70 . 60 590 225 188 315 . . 133 852 959 251 . 427 637 705 522 251 102 328 448 . 10 90 . Entered New Map 871 | . . . . . . 42 11 . . . . 105 237 19 . . . 17 222 62 . . 156 . . . . Time Decay 4943 | 15 20 70 . 50 432 183 167 275 . . 83 567 652 222 . 382 291 398 270 129 87 278 292 . 10 70 . Lost Part 562 | . . . . 10 30 . 10 40 . . 50 30 70 . . 25 187 30 10 . . 50 . . . 20 . Lost Ally 395 | . . . . . 10 . . . . . . . . 10 . 20 . 260 20 60 15 . . . . . . Purge Threat 427 | . . . . . 118 . . . . . . 150 . . . . 159 . . . . . . . . . . Squads Dispatched 36 | . 1 . . 1 1 6 . . . . 1 13 . . . . 4 3 . . . 6 . . . . . Investigation 5 | . . . . 1 . 1 . . . . . 2 . . . . . . . . . 1 . . . . . Extermination 20 | . . . . . . 4 . . . . . 9 . . . . 4 . . . . 3 . . . . . Reinforcement 6 | . 1 . . . 1 1 . . . . . 1 . . . . . 2 . . . . . . . . . Assault 5 | . . . . . . . . . . . 1 1 . . . . . 1 . . . 2 . . . . . Garrison . | . . . . . . . . . . . . . . . . . . . . . . . . . . . . Intercept . | . . . . . . . . . . . . . . . . . . . . . . . . . . . . Searches Triggered . | . . . . . . . . . . . . . . . . . . . . . . . . . . . . Data Miner Redirects 1 | . . . . . . . . . . . . . . . . . . . . . . 1 . . . . . Construction Impeded 2 | . . . . . . . . . . . . 1 . . . . . 1 . . . . . . . . . Haulers Reinforced . | . . . . . . . . . . . . . . . . . . . . . . . . . . . . Active Scanning Responses . | . . . . . . . . . . . . . . . . . . . . . . . . . . . . Cargo Convoy Interrupts . | . . . . . . . . . . . . . . . . . . . . . . . . . . . . Stealth | -11 -10 -10 -10 -9 -8 -7 -7 -7 -7 -7 -6 -6 -6 -6 -6 -5 -5 -5 -5 -5 -5 -4 -4 -4 -4 -3 -3 --------- Run | Yrd Mat Min Exi Min Mat Fac Low Low Zio Dee Pro Fac Low Low Dat Pro Fac Ext Cet Arc Hub Fac Upp Upp Zhi Pro Res Distress Signals 18 | . . . . . 4 1 . . . . . 2 . . . . 4 3 1 . . 2 . . . . 1 Communications Jammed 11 | . . . . . . 10 . . . . . 1 . . . . . . . . . . . . . . . Distress Signals 10 | . . . . . . 10 . . . . . . . . . . . . . . . . . . . . . Times Spotted 360 | . 7 3 . 2 31 11 6 13 . 67 20 46 18 6 . 18 34 38 4 4 4 19 1 . . 4 4 Peak Tracking Total 37 | . 5 3 . 2 6 4 5 4 . 37 9 4 6 3 . 5 8 5 5 1 2 7 1 . . 3 4 Tactical Retreats 16 | . . . . . 2 . 1 1 . 3 . 1 . . . 1 2 2 . . . 2 . . . 1 . Traps | -11 -10 -10 -10 -9 -8 -7 -7 -7 -7 -7 -6 -6 -6 -6 -6 -5 -5 -5 -5 -5 -5 -4 -4 -4 -4 -3 -3 ------- Run | Yrd Mat Min Exi Min Mat Fac Low Low Zio Dee Pro Fac Low Low Dat Pro Fac Ext Cet Arc Hub Fac Upp Upp Zhi Pro Res Traps Triggered 12 | . . . . . . 5 . . . . . 4 . . . . . 3 . . . . . . . . . Indirectly . | . . . . . . . . . . . . . . . . . . . . . . . . . . . . Trap Hack Attempts . | . . . . . . . . . . . . . . . . . . . . . . . . . . . . Triggered . | . . . . . . . . . . . . . . . . . . . . . . . . . . . . Disarmed . | . . . . . . . . . . . . . . . . . . . . . . . . . . . . Reprogrammed . | . . . . . . . . . . . . . . . . . . . . . . . . . . . . Reused 3 | . . . . . 3 . . . . . . . . . . . . . . . . . . . . . . Traps Extracted . | . . . . . . . . . . . . . . . . . . . . . . . . . . . . Installed 3 | . . . . . 3 . . . . . . . . . . . . . . . . . . . . . . Triggered 3 | . . . . . 3 . . . . . . . . . . . . . . . . . . . . . . Most Traps Carried 3 | . . 3 3 3 3 . . . . . . . . . . . . . . . . . . . . . . Machines | -11 -10 -10 -10 -9 -8 -7 -7 -7 -7 -7 -6 -6 -6 -6 -6 -5 -5 -5 -5 -5 -5 -4 -4 -4 -4 -3 -3 ---------- Run | Yrd Mat Min Exi Min Mat Fac Low Low Zio Dee Pro Fac Low Low Dat Pro Fac Ext Cet Arc Hub Fac Upp Upp Zhi Pro Res Machines Disabled 38 | . . . . . 3 . . . 3 2 2 12 . . . 1 4 3 . 2 . 6 . . . . . Max in Single Turn 5 | . . . . . 1 . . . 1 1 1 5 . . . 1 2 1 . . . 4 . . . . . Garrison Access 3 | . . . . . . . . . . . . 2 . . . . . . . . . 1 . . . . . Energy Cycler 1 | . . . . . . . . . . . . . . . . . . 1 . . . . . . . . . Machines Repaired . | . . . . . . . . . . . . . . . . . . . . . . . . . . . . Machines Dismantled 3 | . . . . . . . . . 3 . . . . . . . . . . . . . . . . . . Machines Sabotaged . | . . . . . . . . . . . . . . . . . . . . . . . . . . . . Overloaded Fab Kills . | . . . . . . . . . . . . . . . . . . . . . . . . . . . . Hacking | -11 -10 -10 -10 -9 -8 -7 -7 -7 -7 -7 -6 -6 -6 -6 -6 -5 -5 -5 -5 -5 -5 -4 -4 -4 -4 -3 -3 --------- Run | Yrd Mat Min Exi Min Mat Fac Low Low Zio Dee Pro Fac Low Low Dat Pro Fac Ext Cet Arc Hub Fac Upp Upp Zhi Pro Res Machines Accessed 63 | . 2 . 1 2 13 9 1 1 . . . 16 . . 4 . 5 1 . . 1 3 . . 4 . . Terminals 38 | . 2 . . 1 11 6 . . . . . 10 . . . . 4 1 . . 1 2 . . . . . Fabricators 4 | . . . . . . 2 . . . . . 2 . . . . . . . . . . . . . . . Repair Stations 1 | . . . . . 1 . . . . . . . . . . . . . . . . . . . . . . Recycling Units 1 | . . . . . . 1 . . . . . . . . . . . . . . . . . . . . . Scanalyzers 3 | . . . . . 1 . . . . . . 1 . . . . 1 . . . . . . . . . . Garrison Access 4 | . . . . . . . . . . . . 3 . . . . . . . . . 1 . . . . . Total Hacks 180 | . 5 . 1 3 42 21 1 1 . . . 34 . . 28 . 13 1 . . 7 7 . . 16 . . Successful 102 | . 3 . 1 1 26 8 1 1 . . . 10 . . 28 . 5 . . . 1 1 . . 16 . . Failed 78 | . 2 . . 2 16 13 . . . . . 24 . . . . 8 1 . . 6 6 . . . . . Catastrophic 15 | . . . . 1 . 4 . . . . . 6 . . . . 1 1 . . . 2 . . . . . Database Lockouts . | . . . . . . . . . . . . . . . . . . . . . . . . . . . . Manual 89 | . 4 . 1 2 27 12 . . . . . 19 . . . 1 10 1 . . 7 5 . . . . . Terminals 108 | . 5 . . 2 38 13 . . . . . 25 . . . . 12 1 . . 7 5 . . . . . Fabricators 6 | . . . . . . 4 . . . . . 2 . . . . . . . . . . . . . . . Repair Stations 2 | . . . . . 2 . . . . . . . . . . . . . . . . . . . . . . Recycling Units 4 | . . . . . . 4 . . . . . . . . . . . . . . . . . . . . . Scanalyzers 4 | . . . . . 2 . . . . . . 1 . . . . 1 . . . . . . . . . . Garrison Access 8 | . . . . . . . . . . . . 6 . . . . . . . . . 2 . . . . . Terminal Hacks 66 | . 1 . 1 1 9 1 1 1 . . . 3 . . 28 . 4 . . . . . . . 16 . . Record 17 | . . . . . 1 . . . . . . . . . 11 . . . . . . . . . 5 . . Part Schematic 12 | . . . . . . . . . . . . . . . 9 . . . . . . . . . 3 . . Robot Schematic 5 | . . . . . . . . . . . . . . . 5 . . . . . . . . . . . . Robot Analysis 4 | . . . . . . . . . . . . . . . . . . . . . . . . . 4 . . Prototype ID Bank 9 | . . . . . 2 . . . . . . . . . 3 . . . . . . . . . 4 . . Open Door 4 | . . . . 1 . . 1 1 . . . . . . . . 1 . . . . . . . . . . Terminal Index 1 | . . . . . 1 . . . . . . . . . . . . . . . . . . . . . . Alert Level 2 | . . . . . 1 . . . . . . 1 . . . . . . . . . . . . . . . Unreport Threat 5 | . . . . . 2 . . . . . . 1 . . . . 2 . . . . . . . . . . Locate Traps 2 | . . . . . . . . . . . . 1 . . . . 1 . . . . . . . . . . Recall Investigation 2 | . 1 . . . . 1 . . . . . . . . . . . . . . . . . . . . . Zone Layout 2 | . . . . . 2 . . . . . . . . . . . . . . . . . . . . . . Proto ID Catalog 1 | . . . 1 . . . . . . . . . . . . . . . . . . . . . . . . Fabricator Hacks 3 | . . . . . . 2 . . . . . 1 . . . . . . . . . . . . . . . Network Status 3 | . . . . . . 2 . . . . . 1 . . . . . . . . . . . . . . . Repair Station Hacks 2 | . . . . . 2 . . . . . . . . . . . . . . . . . . . . . . Scan Component 1 | . . . . . 1 . . . . . . . . . . . . . . . . . . . . . . Repair 1 | . . . . . 1 . . . . . . . . . . . . . . . . . . . . . . Recycling Unit Hacks 2 | . . . . . . 2 . . . . . . . . . . . . . . . . . . . . . Report Inventory 1 | . . . . . . 1 . . . . . . . . . . . . . . . . . . . . . Retrieve Components 1 | . . . . . . 1 . . . . . . . . . . . . . . . . . . . . . Scanalyzer 2 | . . . . . 2 . . . . . . . . . . . . . . . . . . . . . . Retrieve Study 2 | . . . . . 2 . . . . . . . . . . . . . . . . . . . . . . Garrison Access Hacks 2 | . . . . . . . . . . . . 2 . . . . . . . . . . . . . . . Seal Access 2 | . . . . . . . . . . . . 2 . . . . . . . . . . . . . . . Unauthorized Hacks 25 | . 2 . . . 13 3 . . . . . 4 . . . . 1 . . . 1 1 . . . . . Terminals 24 | . 2 . . . 13 2 . . . . . 4 . . . . 1 . . . 1 1 . . . . . Assimilate 5 | . . . . . 4 . . . . . . 1 . . . . . . . . . . . . . . . Botnet 14 | . 2 . . . 4 2 . . . . . 3 . . . . 1 . . . 1 1 . . . . . Skim 5 | . . . . . 5 . . . . . . . . . . . . . . . . . . . . . . Fabricators 1 | . . . . . . 1 . . . . . . . . . . . . . . . . . . . . . Download 1 | . . . . . . 1 . . . . . . . . . . . . . . . . . . . . . Repair Stations . | . . . . . . . . . . . . . . . . . . . . . . . . . . . . Recycling Units . | . . . . . . . . . . . . . . . . . . . . . . . . . . . . Scanalyzers . | . . . . . . . . . . . . . . . . . . . . . . . . . . . . Garrison Access . | . . . . . . . . . . . . . . . . . . . . . . . . . . . . Data Cores Recovered 1 | . . . . . 1 . . . . . . . . . . . . . . . . . . . . . . Used . | . . . . . . . . . . . . . . . . . . . . . . . . . . . . Hacking Detections 46 | . 2 . . 1 11 9 . . . . . 14 . . . . 4 1 . . 1 3 . . . . . Full Trace Events 3 | . . . . . . . . . . . . 2 . . . . . . . . . 1 . . . . . Feedback Events . | . . . . . . . . . . . . . . . . . . . . . . . . . . . . Feedback Blocked . | . . . . . . . . . . . . . . . . . . . . . . . . . . . . Robot Schematics Acquired 9 | . . . . . . . . . 4 . . . . . 5 . . . . . . . . . . . . Robots Built . | . . . . . . . . . . . . . . . . . . . . . . . . . . . . Authchips . | . . . . . . . . . . . . . . . . . . . . . . . . . . . . Time . | . . . . . . . . . . . . . . . . . . . . . . . . . . . . Total Robot Build Rating . | . . . . . . . . . . . . . . . . . . . . . . . . . . . . Part Schematics Acquired 24 | . . . . . . . . . 12 . . . . . 9 . . . . . . . . . 3 . . Parts Built . | . . . . . . . . . . . . . . . . . . . . . . . . . . . . Authchips . | . . . . . . . . . . . . . . . . . . . . . . . . . . . . Time . | . . . . . . . . . . . . . . . . . . . . . . . . . . . . Total Part Build Rating . | . . . . . . . . . . . . . . . . . . . . . . . . . . . . Part Studies Acquired 2 | . . . . . 2 . . . . . . . . . . . . . . . . . . . . . . Parts Repaired 1 | . . . . . 1 . . . . . . . . . . . . . . . . . . . . . . Time 38 | . . . . . 38 . . . . . . . . . . . . . . . . . . . . . . Parts Recycled . | . . . . . . . . . . . . . . . . . . . . . . . . . . . . Recycled Matter . | . . . . . . . . . . . . . . . . . . . . . . . . . . . . Retrieved Matter . | . . . . . . . . . . . . . . . . . . . . . . . . . . . . Retrieved Components 3 | . . . . . . 3 . . . . . . . . . . . . . . . . . . . . . Parts Scanalyzed . | . . . . . . . . . . . . . . . . . . . . . . . . . . . . Part Schematics Acquired . | . . . . . . . . . . . . . . . . . . . . . . . . . . . . Parts Damaged . | . . . . . . . . . . . . . . . . . . . . . . . . . . . . Bothacking | -11 -10 -10 -10 -9 -8 -7 -7 -7 -7 -7 -6 -6 -6 -6 -6 -5 -5 -5 -5 -5 -5 -4 -4 -4 -4 -3 -3 ------------ Run | Yrd Mat Min Exi Min Mat Fac Low Low Zio Dee Pro Fac Low Low Dat Pro Fac Ext Cet Arc Hub Fac Upp Upp Zhi Pro Res Used RIF Installer . | . . . . . . . . . . . . . . . . . . . . . . . . . . . . Robots Hacked . | . . . . . . . . . . . . . . . . . . . . . . . . . . . . Non-combat . | . . . . . . . . . . . . . . . . . . . . . . . . . . . . Combat . | . . . . . . . . . . . . . . . . . . . . . . . . . . . . Robot Hacks Applied . | . . . . . . . . . . . . . . . . . . . . . . . . . . . . Relay Couplers Released . | . . . . . . . . . . . . . . . . . . . . . . . . . . . . Fabnet Peak Effective % . | . . . . . . . . . . . . . . . . . . . . . . . . . . . . Robots Rewired 18 | . . . . . . . . . . . 2 . . . . . . 16 . . . . . . . . . Allies Hacked . | . . . . . . . . . . . . . . . . . . . . . . . . . . . . Hacks Repelled . | . . . . . . . . . . . . . . . . . . . . . . . . . . . . Allies | -11 -10 -10 -10 -9 -8 -7 -7 -7 -7 -7 -6 -6 -6 -6 -6 -5 -5 -5 -5 -5 -5 -4 -4 -4 -4 -3 -3 -------- Run | Yrd Mat Min Exi Min Mat Fac Low Low Zio Dee Pro Fac Low Low Dat Pro Fac Ext Cet Arc Hub Fac Upp Upp Zhi Pro Res Total Allies 29 | . . . . . 1 . . . 6 . 2 1 . . . 1 . 18 . . . . . . . . . Largest Group 10 | . . . . . 1 . . . 6 6 2 3 . . . 1 . 10 5 4 1 . . . . . . Highest-Rated Group 294 | . . . . . 10 . . . 148 148 64 90 . . . 96 . 294 154 126 39 . . . . . . Highest-Rated Ally 96 | . . . . . 10 . . . 28 28 32 32 . . . 96 . 39 39 39 39 . . . . . . Total Orders 7 | . . . . . . . . . . . . 2 3 2 . . . . . . . . . . . . . STAY 1 | . . . . . . . . . . . . 1 . . . . . . . . . . . . . . . FOLLOW 1 | . . . . . . . . . . . . 1 . . . . . . . . . . . . . . . EXPLORE 4 | . . . . . . . . . . . . . 2 2 . . . . . . . . . . . . . RETURN 1 | . . . . . . . . . . . . . 1 . . . . . . . . . . . . . . Ally Attacks 202 | . . . . . . . . . . 67 . 11 . . . 21 . 69 12 15 7 . . . . . . Total Damage 4767 | . . . . . . . . . . 1872 . 322 . . . 541 . 1549 167 222 94 . . . . . . Kills 29 | . . . . . . . . . . 13 . 2 . . . 2 . 4 4 2 2 . . . . . . Allies Corrupted . | . . . . . . . . . . . . . . . . . . . . . . . . . . . . Allies Melted . | . . . . . . . . . . . . . . . . . . . . . . . . . . . . Intel | -11 -10 -10 -10 -9 -8 -7 -7 -7 -7 -7 -6 -6 -6 -6 -6 -5 -5 -5 -5 -5 -5 -4 -4 -4 -4 -3 -3 ------- Run | Yrd Mat Min Exi Min Mat Fac Low Low Zio Dee Pro Fac Low Low Dat Pro Fac Ext Cet Arc Hub Fac Upp Upp Zhi Pro Res Active Infowar (turns) 19034 | 81 427 703 357 72 1249 1457 352 718 3150 239 1818 4591 873 810 163 1005 969 . . . . . . . . . . Terrain 4427 | . . . . . 1249 . . . . . 1818 487 873 . . . . . . . . . . . . . . Seismic 2916 | 81 427 703 357 72 . . 284 . . . . . . . . 992 . . . . . . . . . . . Decoding 970 | . . . . . . . . . . . . . . . . 1 969 . . . . . . . . . . Machine Analysis 1457 | . . . . . . 1457 . . . . . . . . . . . . . . . . . . . . . Jamming 10724 | . . . . . . 639 81 718 3150 239 111 4526 . 810 163 12 275 . . . . . . . . . . Robot Analysis Total 4 | . . . . . . . . . . . . . . . . . . . . . . . . . 4 . . Derelict Logs Recovered 13 | . . 1 . 2 . . 2 1 2 . 1 . 1 1 . 1 . . . . . . . 1 . . . Drone Launches 7 | . . . . . . . . . . . . . 4 3 . . . . . . . . . . . . . Drone Recoveries 5 | . . . . . . . . . . . . . 4 1 . . . . . . . . . . . . . Decoded 0b10 Intel 28 | . . . . . . . . . . . . . . . . . 28 . . . . . . . . . . Traps 4 | . . . . . . . . . . . . . . . . . 4 . . . . . . . . . . Items 11 | . . . . . . . . . . . . . . . . . 11 . . . . . . . . . . Machines 6 | . . . . . . . . . . . . . . . . . 6 . . . . . . . . . . Patrols 5 | . . . . . . . . . . . . . . . . . 5 . . . . . . . . . . Guards 2 | . . . . . . . . . . . . . . . . . 2 . . . . . . . . . . Exploration | -11 -10 -10 -10 -9 -8 -7 -7 -7 -7 -7 -6 -6 -6 -6 -6 -5 -5 -5 -5 -5 -5 -4 -4 -4 -4 -3 -3 ------------- Run | Yrd Mat Min Exi Min Mat Fac Low Low Zio Dee Pro Fac Low Low Dat Pro Fac Ext Cet Arc Hub Fac Upp Upp Zhi Pro Res Turns Passed 41820 | 141 427 703 357 1562 3257 1479 701 896 4090 4840 1818 5048 2414 1099 163 2179 1537 3301 591 724 268 1278 826 699 576 824 22 Spaces Moved 18728 | 66 237 423 223 747 1156 781 485 584 2708 3248 257 1997 665 445 90 701 573 1005 125 104 132 427 418 387 299 433 12 Core 8 | 5 . . . . . . . . . . . . . . . . 3 . . . . . . . . . . Treads 2032 | 61 237 423 223 500 588 . . . . . . . . . . . . . . . . . . . . . . Legs 9473 | . . . . . . . . . . 1734 . 1926 665 445 90 701 570 1005 125 104 132 427 418 387 299 433 12 Wheels 7215 | . . . . 247 568 781 485 584 2708 1514 257 71 . . . . . . . . . . . . . . . Hover . | . . . . . . . . . . . . . . . . . . . . . . . . . . . . Flight . | . . . . . . . . . . . . . . . . . . . . . . . . . . . . Fastest Speed 50 | 50 160 160 160 160 145 130 130 130 130 110 130 130 180 180 180 180 180 180 180 180 180 180 180 180 180 180 180 Average Speed 169 | 159 160 160 160 195 215 131 130 142 144 129 141 207 208 191 180 189 191 204 183 189 180 182 193 180 180 180 180 Slowest Speed 1100 | 200 160 160 160 320 320 145 130 145 145 310 145 270 210 210 180 240 1100 210 210 210 180 210 210 180 180 180 180 Overloaded Moves . | . . . . . . . . . . . . . . . . . . . . . . . . . . . . Propulsion Burnouts . | . . . . . . . . . . . . . . . . . . . . . . . . . . . . Robots Hopped . | . . . . . . . . . . . . . . . . . . . . . . . . . . . . Potential Cave-ins . | . . . . . . . . . . . . . . . . . . . . . . . . . . . . Cave-ins Triggered . | . . . . . . . . . . . . . . . . . . . . . . . . . . . . Exploration Rate (%) 55 | 4 42 58 60 98 75 20 63 76 88 84 37 51 83 68 73 69 14 92 59 72 9 13 67 56 60 64 1 Regions Visited 27 Branch Regions 20 Pre-discovered Areas 8 | . . 1 . . . . . . 2 . 1 . . . 1 . . . . . . . . . 3 . . Known Exits Taken 9 | . . . . . 1 1 1 . . . 1 1 1 . . 1 . . . . 1 . . . . 1 . Unknown Exits Taken 18 | 1 1 1 1 1 . . . 1 1 1 . . . 1 1 . 1 1 1 1 . 1 1 1 1 . . Scrap Searched 23 | . . . . 3 . . 1 2 5 . . . 3 4 . 2 . . . . . . . 3 . . . Spaces Dug 145 | . 1 . . . 15 22 1 . . 33 7 22 . 1 . 13 10 5 . . . 15 . . . . . Terrain Destroyed 1062 | . 2 . . . 67 26 1 100 . 288 133 143 16 14 . 53 53 51 2 4 3 102 . . . 4 . Melee 42 | . . . . . 6 . . . . 17 3 8 . 1 . . 7 . . . . . . . . . . Projectile 363 | . 2 . . . 14 26 1 . . 79 14 57 16 13 . 26 22 51 2 4 3 29 . . . 4 . AOE 657 | . . . . . 47 . . 100 . 192 116 78 . . . 27 24 . . . . 73 . . . . . Terrain Rammed . | . . . . . . . . . . . . . . . . . . . . . . . . . . . . Walls Destroyed . | . . . . . . . . . . . . . . . . . . . . . . . . . . . . Machines Disabled . | . . . . . . . . . . . . . . . . . . . . . . . . . . . . Actions | -11 -10 -10 -10 -9 -8 -7 -7 -7 -7 -7 -6 -6 -6 -6 -6 -5 -5 -5 -5 -5 -5 -4 -4 -4 -4 -3 -3 --------- Run | Yrd Mat Min Exi Min Mat Fac Low Low Zio Dee Pro Fac Low Low Dat Pro Fac Ext Cet Arc Hub Fac Upp Upp Zhi Pro Res Total 27593 | 84 271 440 224 832 1801 1152 526 629 2834 3750 1664 2759 1609 661 90 1506 896 2123 482 615 155 852 435 393 336 462 12 Wait 7087 | 2 18 8 . 21 462 253 19 13 38 238 1321 625 866 188 . 753 216 809 336 484 19 363 12 . . 23 . Move 18701 | 65 236 422 222 746 1155 780 484 583 2707 3247 256 1996 664 444 89 700 572 1004 124 103 131 426 417 386 298 432 12 Hop . | . . . . . . . . . . . . . . . . . . . . . . . . . . . . Pick Up 201 | 2 7 4 1 17 33 10 2 4 11 45 3 16 6 3 . 4 10 4 4 4 . 1 1 2 7 . . Fast Attach 65 | 7 . . . 1 5 7 1 1 6 26 . 1 . . . . 8 . . . . . . . 2 . . Attach 64 | . . . . . 4 3 2 4 8 19 9 2 1 . . 1 7 1 . . . . . . 3 . . Detach 99 | . . . . . 2 1 . . 8 10 . 15 10 . . 11 2 11 3 6 . 7 3 3 7 . . Swap 179 | . 2 1 . 11 31 11 4 5 11 30 3 14 13 7 . 5 8 4 6 2 2 4 . . 5 . . Drop 196 | . . . 1 18 32 19 . 4 17 42 3 11 3 8 . 4 7 4 5 5 . 1 1 2 9 . . Fire 599 | 8 8 5 . 12 64 68 14 15 . 59 36 61 40 10 . 26 43 67 4 8 3 41 . . . 7 . Melee 110 | . . . . . 8 . . . 1 34 3 18 6 1 . 2 22 2 . 3 . 4 1 . 5 . . Ram . | . . . . . . . . . . . . . . . . . . . . . . . . . . . . Kick 7 | . . . . . . . . . . . . . . . . . 1 1 . . . 5 . . . . . Crush 8 | . . . . 6 2 . . . . . . . . . . . . . . . . . . . . . . Escape Stasis 15 | . . . . . . . . . . . . . . . . . . 15 . . . . . . . . . Rewire 231 | . . . . . . . . . . . 30 . . . . . . 201 . . . . . . . . . Trap 3 | . . . . . 3 . . . . . . . . . . . . . . . . . . . . . . Miscellaneous 28 | . . . . . . . . . 27 . . . . . 1 . . . . . . . . . . . . Route ------- -11/Scrapyard -10/Materials (discovered 3 exits: [*Mat] / [*Min x2]) -10/Mines (discovered 4 exits: [*Mat x2] / *Exi / [*Sub]) -10/Exiles -9/Mines (discovered 2 exits: *Mat x2) -8/Materials (discovered 3 exits: *Fac x3) -7/Factory (discovered 4 exits: *Fac x2 / *Low x2) -7/Lower Caves -7/Lower Caves -7/Zion (discovered 2 exits: [*Dee] / [*Pro]) -7/Deep Caves -6/Proximity Caves -6/Factory (discovered 3 exits: *Fac x2 / *Low) -6/Lower Caves -6/Lower Caves (discovered 2 exits: *Fac / *Dat) -6/Data Miner -5/Proximity Caves -5/Factory (discovered 3 exits: Fac / Upp / *Ext) -5/Extension (discovered 2 exits: *Fac / *Cet) -5/Cetus -5/Archives (discovered 2 exits: *Fac / *Hub) -5/Hub_04(d) -4/Factory -4/Upper Caves -4/Upper Caves -4/Zhirov -3/Proximity Caves -3/Research History --------- Turn | Location | Event 8 | -11/Scrapyard | Discovered new exit (range 16) 142 | -11/Scrapyard | Entered Materials 308 | -10/Materials | Build established: Mutant 308 | -10/Materials | Discovered new exit (range 12) 329 | -10/Materials | Discovered new exit (range 12) 559 | -10/Materials | Discovered new exit (range 7) 569 | -10/Materials | Entered Mines 578 | -10/Mines | Met a Derelict bent on vengeance 601 | -10/Mines | Learned location of Zion (-7) 755 | -10/Mines | Discovered new exit (range 8) 800 | -10/Mines | Deemed a non-threat by the Exiles lab entrance 801 | -10/Mines | Discovered new exit (range 5) 853 | -10/Mines | Found a hidden stash of uninstalled traps 913 | -10/Mines | A weapon hastily lodged in a ceiling crevice suddenly fell to the ground 1058 | -10/Mines | Discovered new exit (range 12) 1141 | -10/Mines | Discovered new exit (range 6) 1272 | -10/Mines | Entered Exiles 1311 | -10/Exiles | Met 8R-AWN 1336 | -10/Exiles | Met EX-HEX 1383 | -10/Exiles | Met EX-BIN 1405 | -10/Exiles | Aligned with FarCom system 1407 | -10/Exiles | Given EX-Vault access code 1453 | -10/Exiles | Opened EX-Vault 1470 | -10/Exiles | Found AWS/Gauss 1503 | -10/Exiles | Warned to stay clear of 0b10 Research branches 1556 | -10/Exiles | Met EX-DEC 1615 | -10/Exiles | Discovered new exit (range 10) 1629 | -10/Exiles | Left Exiles lab with AWS/Gauss 1629 | -10/Exiles | Entered Mines 1722 | -9/Mines | Learned Materials emergency access door positions 1903 | -9/Mines | Discovered new exit (range 12) 2005 | -9/Mines | Learned 4 Materials zone layouts 2195 | -9/Mines | Joined a pair of Derelicts in attacking an 0b10 outpost 2367 | -9/Mines | Met a Derelict shopkeep closing up shop 3161 | -9/Mines | Discovered new exit (range 9) 3191 | -9/Mines | Entered Materials 3191 | -8/Materials | Evolved 4 slots: Utility x3, Weapon x1 3192 | -8/Materials | Identified exit to Factory 3816 | -8/Materials | Build established: Skirmisher 4681 | -8/Materials | Repaired Imp. Grenade Launcher 5395 | -8/Materials | Build established: Gunner 5449 | -8/Materials | Discovered exit to Factory (range 16) 6291 | -8/Materials | Learned Storage emergency access door positions 6357 | -8/Materials | Learned location of 1 exit from Recycling 6375 | -8/Materials | Learned Factory garrison access intel 6381 | -8/Materials | Learned 12 Factory zone layouts 6382 | -8/Materials | Learned location of 1 exit from Recycling 6404 | -8/Materials | Learned 8 Factory zone layouts 6430 | -8/Materials | Learned Factory garrison access intel 6448 | -8/Materials | Entered Factory 6448 | -7/Factory | Evolved 2 slots: Utility x1, Weapon x1 6449 | -7/Factory | Identified exit to Lower Caves 6450 | -7/Factory | Identified exit to Factory 6451 | -7/Factory | Loaded intel: 4 garrison access locations 7056 | -7/Factory | Build established: Skirmisher 7526 | -7/Factory | Discovered exit to Factory (range 10) 7927 | -7/Factory | Entered Lower Caves 8030 | -7/Lower Caves | Identified exit to Lower Caves 8176 | -7/Lower Caves | Attracted the attention of an 0b10 checkpoint 8247 | -7/Lower Caves | Build established: Gunner 8573 | -7/Lower Caves | Encountered a Warlord checkpoint 8628 | -7/Lower Caves | Entered another Lower Caves area 8751 | -7/Lower Caves | Lost 4 parts (2u2w) 8758 | -7/Lower Caves | Destroyed 8 combat bots 8932 | -7/Lower Caves | Learned Factory terminal intel 9098 | -7/Lower Caves | Build established: Tank 9268 | -7/Lower Caves | Found Prototype Device 9333 | -7/Lower Caves | Discovered new exit (range 10) 9524 | -7/Lower Caves | Entered Zion 9575 | -7/Zion | System corruption cleaned by Quarantine Array 9739 | -7/Zion | Discovered new exit (range 12) 9892 | -7/Zion | Found CR-A16's Pointy Stick 10177 | -7/Zion | Learned location of 1 exit from Proximity Caves 10258 | -7/Zion | Learned location of Armory (-3) 10305 | -7/Zion | Learned Factory emergency access door positions 10403 | -7/Zion | Gained Derelict followers 11976 | -7/Zion | Discovered new exit (range 5) 11979 | -7/Zion | Saw the warning signs outside the Deep Caves entrance 12108 | -7/Zion | Rebuked by Imprinter 12502 | -7/Zion | Found Prototype Energy Gun 12502 | -7/Zion | Identified Storm Laser 13181 | -7/Zion | Found Prototype Special Weapon 13181 | -7/Zion | Identified RU-N14's Throwing Claymores 13187 | -7/Zion | Found RU-N14's Throwing Claymores 13191 | -7/Zion | Found RU-N14's Throwing Claymores 13209 | -7/Zion | Found RU-N14's Throwing Claymores 13267 | -7/Zion | Visited the Megawrench Repair Shop 13267 | -7/Zion | Megawrench repaired 9 parts 13427 | -7/Zion | Build established: Derelict-Tank 13614 | -7/Zion | Entered Deep Caves 13614 | -7/Deep Caves | Accompanied by 6 allies 13883 | -7/Deep Caves | Build established: Tank 13914 | -7/Deep Caves | Attacked by Z-Imprinter 13967 | -7/Deep Caves | Allies destroyed Z-Imprinter 13983 | -7/Deep Caves | Found Prototype Protection 13983 | -7/Deep Caves | Identified Zio. Weapon Casing 13998 | -7/Deep Caves | Lost 3 parts (2u1w) 14227 | -7/Deep Caves | Found Prototype Protection 14227 | -7/Deep Caves | Identified Zio. Heavy Carapace 14244 | -7/Deep Caves | Z-Facility disabled 14303 | -7/Deep Caves | Lost 6 allies 14413 | -7/Deep Caves | Found Zio. Heavy Carapace 14579 | -7/Deep Caves | Found Zio. Weapon Casing 15089 | -7/Deep Caves | Build established: Scavenger-Gladiator 15105 | -7/Deep Caves | Discovered new exit (range 6) 15837 | -7/Deep Caves | Spotted Golem 15875 | -7/Deep Caves | Core integrity fell below 50% 15881 | -7/Deep Caves | Destroyed Golem 15911 | -7/Deep Caves | Lost 4 parts (4u) 15991 | -7/Deep Caves | Found Zio. Heavy Carapace 16009 | -7/Deep Caves | Found Zio. Weapon Casing 16547 | -7/Deep Caves | Spotted Golem 16601 | -7/Deep Caves | Destroyed Golem 16625 | -7/Deep Caves | Triggered Deep Caves wall 16625 | -7/Deep Caves | Spotted Assembler 16628 | -7/Deep Caves | Spotted Assembler 16667 | -7/Deep Caves | Core integrity fell below 20% 16728 | -7/Deep Caves | Destroyed 12 combat bots 16783 | -7/Deep Caves | Found Zio. Weapon Casing 16952 | -7/Deep Caves | Destroyed Assembler 16972 | -7/Deep Caves | Found Surveybot 24 Scanner 17004 | -7/Deep Caves | Destroyed 23 combat bots 17195 | -7/Deep Caves | Build established: Scavenger-Tank 17264 | -7/Deep Caves | Destroyed Assembler 18325 | -7/Deep Caves | Exposed GOLEM chamber 18349 | -7/Deep Caves | Found GOLEM Unit 18357 | -7/Deep Caves | Found GOLEM Unit 18373 | -7/Deep Caves | Found YOLO Cannon 18398 | -7/Deep Caves | Found GOLEM Unit 18454 | -7/Deep Caves | Entered Proximity Caves 18494 | -6/Proximity Caves | Build established: Tank 18915 | -6/Proximity Caves | AWS/Gauss suddenly broke down 20114 | -6/Proximity Caves | Attracted the attention of an 0b10 outpost 20177 | -6/Proximity Caves | Destroyed 14 combat bots 20185 | -6/Proximity Caves | Lost 5 parts (4u1w) 20272 | -6/Proximity Caves | Entered Factory 20272 | -6/Factory | Accompanied by 2 allies 20272 | -6/Factory | Evolved 2 slots: Power x1, Utility x1 20274 | -6/Factory | Loaded intel: 26 terminal locations 20275 | -6/Factory | Loaded intel: 4 garrison access locations 20598 | -6/Factory | Build established: Golem 23059 | -6/Factory | Discovered new exit (range 16) 23107 | -6/Factory | Identified exit to Factory 23428 | -6/Factory | Spotted B-75 Beast 23458 | -6/Factory | Revealed the true nature of CR-A16's Pointy Stick 23461 | -6/Factory | Destroyed B-75 Beast 24025 | -6/Factory | Discovered exit to Factory (range 6) 24472 | -6/Factory | First assault squad dispatched 25293 | -6/Factory | Discovered new exit (range 11) 25316 | -6/Factory | Identified exit to Lower Caves 25320 | -6/Factory | Entered Lower Caves 25757 | -6/Lower Caves | Attracted the attention of an 0b10 checkpoint 26025 | -6/Lower Caves | Identified exit to Lower Caves 26802 | -6/Lower Caves | Lost 7 parts (1p4u2w) 27734 | -6/Lower Caves | Entered another Lower Caves area 27748 | -6/Lower Caves | Discovered exit to Factory (range 8) 28035 | -6/Lower Caves | Learned 4 Factory zone layouts 28072 | -6/Lower Caves | Core integrity fell below 50% 28182 | -6/Lower Caves | Attracted the attention of an 0b10 checkpoint 28289 | -6/Lower Caves | Encountered a Warlord checkpoint 28551 | -6/Lower Caves | Discovered new exit (range 9) 28833 | -6/Lower Caves | Entered Data Miner 28833 | -6/Data Miner | Discovered new exit (range 6) 28871 | -6/Data Miner | Met Data Miner 28920 | -6/Data Miner | Learned location of Section 7 (-2) 28920 | -6/Data Miner | Acquired the access code to Warlord's prototype stash 28936 | -6/Data Miner | Received God Mode back door access code from Data Miner 28996 | -6/Data Miner | Entered Proximity Caves 28998 | -5/Proximity Caves | Attracted the attention of an 0b10 checkpoint 29046 | -5/Proximity Caves | Lost 3 parts (2u1w) 29435 | -5/Proximity Caves | Acquired the password to a Derelict Tinkerer's latest research 29512 | -5/Proximity Caves | Spotted B-75 Beast 29535 | -5/Proximity Caves | Escorted by Enhanced Grunt 29555 | -5/Proximity Caves | Destroyed B-75 Beast 29616 | -5/Proximity Caves | Learned Factory emergency access door positions 29732 | -5/Proximity Caves | Found Prototype Special Weapon 29785 | -5/Proximity Caves | Core integrity fell below 20% 30261 | -5/Proximity Caves | Received a Behemoth hack from an annoying Tinkerer 30290 | -5/Proximity Caves | Discovered exit to Factory (range 8) 30521 | -5/Proximity Caves | Caught by Unaware searching for contraband prototypes 31175 | -5/Proximity Caves | Entered Factory 31175 | -5/Factory | Evolved 2 slots: Utility x2 31176 | -5/Factory | Identified exit to Upper Caves 31177 | -5/Factory | Identified exit to Factory 32243 | -5/Factory | System corruption reached 10% 32294 | -5/Factory | Lost 16 parts (1p2n9u4w) 32552 | -5/Factory | Build established: Scavenger-Mutant 32704 | -5/Factory | Discovered new exit (range 6) 32712 | -5/Factory | Entered Extension 32844 | -5/Extension | Disrupted transfer network 33142 | -5/Extension | Build established: Golem 33599 | -5/Extension | Rescued a captive Derelict 33600 | -5/Extension | Rescued a captive Derelict 33700 | -5/Extension | Core integrity fell below 50% 34342 | -5/Extension | Build established: Commander-Golem 34567 | -5/Extension | Spotted B-75 Beast 34575 | -5/Extension | Spotted B-75 Beast 34596 | -5/Extension | Destroyed B-75 Beast 34601 | -5/Extension | Destroyed B-75 Beast 34629 | -5/Extension | Lost 8 allies 34819 | -5/Extension | Discovered new exit (range 16) 34821 | -5/Extension | Discovered exit to Factory (range 15) 34889 | -5/Extension | Build established: Golem 35067 | -5/Extension | Energy Cycler disabled 35067 | -5/Extension | Rescued a captive Derelict 35069 | -5/Extension | Rescued a captive Derelict 35070 | -5/Extension | Rescued a captive Derelict 35085 | -5/Extension | Rescued a captive Derelict 35948 | -5/Extension | Build established: Commander-Golem 36012 | -5/Extension | First assault squad dispatched 36013 | -5/Extension | Entered Cetus 36013 | -5/Cetus | Accompanied by 5 allies 36362 | -5/Cetus | Spotted Cetus Guard 36362 | -5/Cetus | Spotted Cetus Guard 36366 | -5/Cetus | Spotted Cetus Guard 36366 | -5/Cetus | Spotted Cetus Guard 36368 | -5/Cetus | Destroyed Cetus Guard 36375 | -5/Cetus | Allies destroyed Cetus Guard 36380 | -5/Cetus | Allies destroyed Cetus Guard 36565 | -5/Cetus | Discovered new exit (range 15) 36604 | -5/Cetus | Entered Archives 36604 | -5/Archives | Accompanied by 4 allies 36729 | -5/Archives | Discovered new exit (range 16) 36767 | -5/Archives | Discovered exit to Factory (range 16) 36967 | -5/Archives | Build established: Golem 37328 | -5/Archives | Entered Hub_04(d) 37328 | -5/Hub_04(d) | Accompanied by 1 ally 37387 | -5/Hub_04(d) | Discovered exit to Factory (range 16) 37596 | -5/Hub_04(d) | Entered Factory 37596 | -4/Factory | Evolved 2 slots: Utility x2 38620 | -4/Factory | Incoming investigation squad redirected 38757 | -4/Factory | Discovered new exit (range 16) 38874 | -4/Factory | Entered Upper Caves 39414 | -4/Upper Caves | Spotted B-86 Titan 39440 | -4/Upper Caves | Destroyed B-86 Titan 39616 | -4/Upper Caves | Discovered new exit (range 10) 39700 | -4/Upper Caves | Entered another Upper Caves area 39941 | -4/Upper Caves | Learned location of 1 exit from Proximity Caves 40146 | -4/Upper Caves | Encountered a Warlord checkpoint 40381 | -4/Upper Caves | Discovered new exit (range 7) 40399 | -4/Upper Caves | Entered Zhirov 40399 | -4/Zhirov | Discovered new exit (range 3) 40434 | -4/Zhirov | Met Zhirov 40470 | -4/Zhirov | Learned location of Quarantine (-3) 40470 | -4/Zhirov | Learned location of Testing (-2) 40470 | -4/Zhirov | Learned location of Command (-1) 40486 | -4/Zhirov | Zhirov requested help retrieving the SGEMP Prototype 40515 | -4/Zhirov | Found Alien Artifact 40515 | -4/Zhirov | Identified Integrated Reactor 40515 | -4/Zhirov | Installed Integrated Reactor, increased core energy generation (+10) 40540 | -4/Zhirov | Found Alien Artifact 40975 | -4/Zhirov | Entered Proximity Caves 40976 | -3/Proximity Caves | Identified exit to Research 41062 | -3/Proximity Caves | Attracted the attention of an 0b10 checkpoint 41408 | -3/Proximity Caves | Build established: Tank 41799 | -3/Proximity Caves | Entered Research 41799 | -3/Research | Evolved 2 slots: Propulsion x2 41821 | -3/Research | Self-destructed Last Messages --------------- 41138_ Unknown Reactor fries itself beyond repair. 41142_ Flexi-carbon Leg fries itself beyond repair. 41155_ System corrupted: Energy discharge (-320). 41188_ System corrupted: Energy discharge (-275). 41308_ System corrupted: Matter fused (-10). 41464_ System corrupted: Adv. Cooling System fused. 41544_ System corrupted: Matter fused (-7). 41689_ System corrupted: Component data lost. 41710_ System corrupted: Matter fused (-8). 41750_ 0BHCORB9>2OWK=FP< 3>YM9KQB80Z>WIO PARAMETERS=PROPULSION+2 LOCATION=RESEARCH GOAL=ESCAPE 41799_ Receiving FarCom transmissions... 41804_ FARCOM_MSG: Anonymous tester bot, EX-BIN here, just a quick reminder that unless you're really into science and its potentially deadly consequences, consider trying your best to avoid entering Testing or Quarantine. 41812_ W-44 Eye sends out distress signal. 41813_ ALERT: All DSF locations entering lockdown mode. Map ----- +----------------------------------------------------+ | ?????????????????????????????????????????????????? | | ?????????????????????????????????????????????????? | | ?????????????????????????????????????????????????? | | ?????????????????????????????????????????????????? | | ?????????????????????????????????????????????????? | | ?????????????????????????????????????????????????? | | ?????????????????????????????????????????????????? | | ?????????????????????????????????????????????????? | | ?????????????????????????????????????????????????? | | ?????????????????????????????????????????????????? | | ??????????????????????????? ??????????????????? | | ?????????????????????????? +?????????????????? | | ??????????????????????????# #?????????????????? | | ??????????????????????????# #?????????????????? | | ??????????????????????????# #####?????????????? | | ?????????????w????????????# ??????????????? | | ??????????????????????????# ???????????????? | | ??????????????????????????# ????????????????? | | ??????????????????????????# ?????????????????? | | ??????????????????????????# #?????????????????? | | ??????????????????????????# #?????????????????? | | ???????????## ############# #?????????????????? | | ??????????? gg #?????????????????? | | ?????????? g #?????????????????? | | ?????????? +?????????????????? | | ?????????? @ #?????????????????? | | ?????????????????#### ##### #?????????????????? | | ??????????????????????????# #?????????????????? | | ??????????????????????????# #?????????????????? | | ??????????????????????????# #?????????????????? | | ??????????????????????????# #?????????????????? | | ??????????????????????????# #?????????????????? | | ??????????????????????????+ #?????????????????? | | ??????????????????????????# #?????????????????? | | ??????????????????????????# #?????????????????? | | ??????????????????????????# #?????????????????? | | ??????????????????????????#### #?????????????????? | | ?????????????????????????????? #?????????????????? | | ?????????????????????????????? #?????????????????? | | ?????????????????????????????? #?????????????????? | | ?????????????????????????????? #?????????????????? | | ?????????????????????????????? #?????????????????? | | ?????????????????????????????? #?????????????????? | | ?????????????????????????????? #?????????????????? | | ??????????????????????????????? ?????????????????? | | ???????????????????????????????#?????????????????? | | ?????????????????????????????????????????????????? | | ?????????????????????????????????????????????????? | | ?????????????????????????????????????????????????? | | ?????????????????????????????????????????????????? | +----------------------------------------------------+ Best States ------------- Heat Dissipation 92 Energy Generation 67 Energy Capacity 1600 Matter Stores 363 Matter Capacity 600 Sight Range 16 Terrain Scan Range 24 Terrain Scan Density 210 Jamming Range 12 Power Amplification 30 Additional Mass Support 20 Base Temperature (-) 100 Armor Coverage 1600 Resistance: KI 30 Resistance: TH 15 Resistance: EX 15 Resistance: EM 25 Resistance: I 15 Resistance: S 15 Resistance: P 15 Weapon Shielding 100 Weapon Cycling 20 Phase Shifting 8 Evasion (%) 55 Targeting Accuracy 8 Melee Accuracy 6 Target Analysis 6 Core Analysis 8 Armor Integrity Analysis 30 Recoil Reduction 6 Energy Filtering 30 Particle Charging 20 Offensive Hacking 12 Defensive Hacking 12 Item Schematics ----------------- Gravmag System | -7/Zion | Archive Magnetic Acceleration Cannon | -7/Zion | Archive Coolant Injector | -7/Zion | Archive Gauss Cannon | -7/Zion | Archive Lrn. Tractor Beam | -7/Zion | Archive Adv. Recoil Stabilizer | -7/Zion | Archive Adv. Assault Cannon | -7/Zion | Archive Energy Well | -7/Zion | Archive Thermal Shield | -7/Zion | Archive Coil Gun | -7/Zion | Archive System Restoration Module | -7/Zion | Archive Focal Shield | -7/Zion | Archive Combat Drone Bay | -6/Data Miner | Free Lgt. Regenerative Plating | -6/Data Miner | Free Cld. Gravmag System | -6/Data Miner | Free Exp. Heat Sink | -6/Data Miner | Free Thunder Hammer | -6/Data Miner | Free Lrn. Sensor Array | -6/Data Miner | Free Imp. Antigrav System | -6/Data Miner | Free Railgun | -6/Data Miner | Free Imp. Launcher Guidance Computer | -6/Data Miner | Free Exp. Optical Array | -4/Zhirov | Free Imp. Arc Thrower | -4/Zhirov | Free Assault Drone Bay | -4/Zhirov | Free Robot Schematics ------------------ T-07 Excavator | -7/Zion | Archive W-25 Informer | -7/Zion | Archive B-48 Gladiator | -7/Zion | Archive H-88 Terminator | -7/Zion | Archive M-22 Extractor | -6/Data Miner | Free H-66 Slayer | -6/Data Miner | Free L-41 Fighter | -6/Data Miner | Free E-15 Imp | -6/Data Miner | Free H-77 Assassin | -6/Data Miner | Free Fabricated ------------ Nothing Repaired ---------- Imp. Grenade Launcher | 12% | -8/Materials Studied --------- Com. Wheel | -8/Materials | Hacked Minigun | -8/Materials | Hacked Alien Tech Used ----------------- Integrated Reactor Achievements -------------- Drive-By Giant Slayer The Robot, The Myth, The Legend Challenges ------------ None Game ------ Seed ScrapoidVisualDeck Manual? 0 Play Time 04:24:36 Cumulative 433.7 hours Start 2026.07.03 @ 21:33:47 End 2026.07.04 @ 02:29:51 Sessions 1 Manual Loads 0 Difficulty Rogue Special Mode None Game No. 317 Rogue 317 Adventurer 0 Explorer 0 Win Type - Total 9 Types 4/0/3/2/0/0/0/0/0/0 Lore% 78 Gallery% 73 Achievement% 55 Wizard Run 0 Options --------- Layout 2 ASCII 0 Keyboard 0 Movement Vi Keybinds 0 Fullscreen 2 Font 32/SmallcapsGlow Map View 77x44 Zoom Use 0% Tactical HUD 1 Map Filters NONE Filters NONE Steam 1 RUN: 522a683e-a645-429e-a3c2-5d41dc86e40f